bitfinex-derivatives/quotes_SOLF0:USTF0_20250730
["timestamp","ask_amount","ask_price","bid_price","bid_amount"]
[1753902033062,393.20554755,175.75,175.61,10.72554755]
[1753902033257,10.72554755,175.75,175.61,10.72554755]
[1753902033564,10.72554755,175.75,175.53,11.3949]
[1753902033565,10.72554755,175.72,175.58,10.72554755]
[1753902033951,10.72554755,175.72,175.59,10.72554755]
[1753902034160,10.72554755,175.72,175.58,10.72554755]
[1753902034663,27.73554755,175.84,175.58,10.72554755]
[1753902034958,10.72554755,175.78,175.71,5.6916]
[1753902035360,124.0,175.8,175.64,10.72554755]
[1753902035563,10.72554755,175.79,175.73,5.6909]
[1753902035765,10.72554755,175.79,175.64,10.72554755]
[1753902036062,10.72554755,175.79,175.72,5.691]
[1753902036261,10.72554755,175.79,175.64,10.72554755]
[1753902036461,10.72554755,175.79,175.57,11.3921]
[1753902036858,10.72554755,175.79,175.63,10.72554755]
[1753902037556,10.72554755,175.79,175.56,10.72554755]
[1753902037557,10.72554755,175.79,175.75,5.69]
[1753902037756,10.72554755,175.82,175.59,11.3906]
[1753902037957,10.72554755,175.79,175.64,10.72554755]
[1753902038265,10.72554755,175.82,175.66,10.72554755]
[1753902038459,10.72554755,175.82,175.69,10.72554755]
[1753902038665,382.64,175.92,175.72,10.72554755]
[1753902038861,10.72554755,175.87,175.75,10.72554755]
[1753902039067,10.72554755,175.87,175.74,10.72554755]
[1753902039461,10.72554755,175.87,175.71,10.72554755]
[1753902039664,10.72554755,175.84,175.71,10.72554755]
[1753902039861,10.72554755,175.87,175.71,10.72554755]
[1753902040062,10.72554755,175.84,175.71,10.72554755]
[1753902040362,10.72554755,175.84,175.68,10.72554755]
[1753902040760,10.72554755,175.86,175.71,10.72554755]
[1753902041365,10.72554755,175.83,175.64,119.5]
[1753902041562,10.72554755,175.8,175.64,119.5]
[1753902041763,10.72554755,175.8,175.65,10.72554755]
[1753902041964,10.72554755,175.8,175.73,5.6909]
[1753902042365,10.72554755,175.8,175.65,10.72554755]
[1753902042566,10.72554755,175.77,175.62,10.72554755]
[1753902042761,10.72554755,175.74,175.62,10.72554755]
[1753902042972,10.72554755,175.71,175.58,382.66]
[1753902043268,10.72554755,175.73,175.59,10.72554755]
[1753902043670,10.72554755,175.7,175.58,382.66]
[1753902043970,5.6923,175.69,175.58,382.66]
[1753902044368,10.72554755,175.7,175.58,382.66]
[1753902044575,10.72554755,175.7,175.62,5.6943]
[1753902045069,10.72554755,175.7,175.58,382.66]
[1753902045271,10.72554755,175.7,175.54,119.28]
[1753902045471,5.694,175.64,175.54,119.28]
[1753902045665,10.72554755,175.67,175.54,119.28]
[1753902046061,10.72554755,175.68,175.54,119.28]
[1753902046668,17.01,175.77,175.46,382.6]
[1753902046872,10.72554755,175.67,175.53,10.72554755]
[1753902047370,10.72554755,175.67,175.46,382.6]
[1753902047563,10.72554755,175.64,175.51,10.72554755]
[1753902048071,5.6945,175.63,175.51,10.72554755]
[1753902048265,10.72554755,175.65,175.51,10.72554755]
[1753902048466,10.72554755,175.65,175.46,501.64]
[1753902048666,10.72554755,175.62,175.5,10.72554755]
[1753902048971,10.72554755,175.62,175.47,10.72554755]
[1753902049179,34.06,175.75,175.46,501.64]
[1753902049362,10.72554755,175.62,175.48,10.72554755]
[1753902050970,10.72554755,175.64,175.51,10.72554755]
[1753902051368,10.72554755,175.61,175.47,10.72554755]
[1753902051762,10.72554755,175.61,175.46,382.6]
[1753902051763,10.72554755,175.64,175.55,5.6965]
[1753902052067,10.72554755,175.64,175.5,10.72554755]
[1753902052267,17.01,175.69,175.56,5.6963]
[1753902052476,10.72554755,175.61,175.47,10.72554755]
[1753902052974,10.72554755,175.64,175.5,10.72554755]
[1753902053165,136.09,175.72,175.5,10.72554755]
[1753902053366,17.01,175.72,175.53,10.72554755]
[1753902053562,10.72554755,175.63,175.49,10.72554755]
[1753902053872,130.4205,175.76,175.52,10.72554755]
[1753902053873,10.72554755,175.66,175.52,10.72554755]
[1753902054066,10.72554755,175.63,175.46,382.6]
[1753902054266,10.72554755,175.6,175.46,382.6]
[1753902054468,10.72554755,175.6,175.51,5.6981]
[1753902054674,10.72554755,175.6,175.46,393.32554755]
[1753902055072,10.72554755,175.6,175.46,382.6]
[1753902055273,10.72554755,175.58,175.46,382.6]
[1753902055470,10.72554755,175.55,175.44,10.72554755]
[1753902055675,10.72554755,175.55,175.42,0.02]
[1753902056571,10.72554755,175.52,175.46,5.6997]
[1753902056877,10.72554755,175.52,175.42,0.02]
[1753902057072,124.0,175.59,175.42,0.02]
[1753902057275,382.78,175.64,175.42,0.02]
[1753902057475,10.72554755,175.63,175.42,0.02]
[1753902057676,10.72554755,175.63,175.49,10.72554755]
[1753902058378,124.0,175.78,175.52,10.72554755]
[1753902058577,382.84,175.77,175.52,10.72554755]
[1753902058774,10.72554755,175.65,175.49,10.72554755]
[1753902059474,10.72554755,175.62,175.49,10.72554755]
[1753902059670,10.72554755,175.62,175.47,82.46]
[1753902059974,10.72554755,175.63,175.47,93.18554755]
[1753902060168,10.72554755,175.63,175.47,10.72554755]
[1753902060366,10.72554755,175.57,175.44,10.72554755]
[1753902060771,10.72554755,175.54,175.42,0.02]
[1753902061370,10.72554755,175.52,175.42,0.02]
[1753902061573,10.72554755,175.56,175.42,0.02]
[1753902061978,10.72554755,175.56,175.43,10.72554755]
[1753902063277,10.72554755,175.53,175.42,0.02]
[1753902063973,10.72554755,175.5,175.42,0.02]
[1753902064581,130.22554755,175.56,175.42,0.02]
[1753902064882,10.72554755,175.5,175.42,0.02]
[1753902066581,10.72554755,175.5,175.46,5.6997]
[1753902066782,10.72554755,175.51,175.46,5.6997]
[1753902067088,10.72554755,175.48,175.42,0.02]
[1753902067276,10.72554755,175.56,175.42,0.02]
[1753902067277,10.72554755,175.45,175.42,0.02]
[1753902067581,5.7007,175.43,175.42,0.02]
[1753902067976,10.72554755,175.45,175.42,0.02]
[1753902068482,5.7007,175.43,175.42,0.02]
[1753902068678,16.42624755,175.43,175.42,0.02]
[1753902069385,10.72554755,175.43,175.4,1.084]
[1753902070082,5.7014,175.41,175.4,1.084]
[1753902070285,16.42694755,175.41,175.4,1.084]
[1753902070581,5.7014,175.41,175.4,1.084]
[1753902070786,5.7017,175.4,175.39,4.16041523]
[1753902070980,5.7,175.41,175.13,502.28]
[1753902071183,10.72554755,175.4,175.25,10.72554755]
[1753902071484,10.72554755,175.43,175.28,10.72554755]
[1753902071984,10.72554755,175.4,175.2,11.4162]
[1753902072377,10.72554755,175.4,175.23,10.72554755]
[1753902072579,383.06,175.45,175.23,10.72554755]
[1753902072782,10.72554755,175.4,175.26,10.72554755]
[1753902072980,383.06,175.45,175.29,10.72554755]
[1753902073176,10.72554755,175.43,175.29,10.72554755]
[1753902073392,10.72554755,175.43,175.31,10.72554755]
[1753902073583,383.06,175.45,175.31,10.72554755]
[1753902073885,10.72554755,175.48,175.42,5.7009]
[1753902074086,10.72554755,175.48,175.34,10.72554755]
[1753902074278,10.72554755,175.48,175.33,10.72554755]
[1753902074979,119.26,175.51,175.22,0.99290982]
[1753902075182,10.72554755,175.43,175.29,10.72554755]
[1753902075383,10.72554755,175.4,175.26,10.72554755]
[1753902075584,10.72554755,175.4,175.24,10.72554755]
[1753902076089,10.72554755,175.37,175.22,10.72554755]
[1753902076283,10.72554755,175.37,175.2,119.5]
[1753902076482,10.72554755,175.37,175.22,10.72554755]
[1753902076685,17.01,175.53,175.22,10.72554755]
[1753902076888,10.72554755,175.39,175.23,10.72554755]
[1753902077082,5.7036,175.35,175.22,10.72554755]
[1753902077279,10.72554755,175.36,175.22,10.72554755]
[1753902077682,16.42874755,175.36,175.22,10.72554755]
[1753902077887,10.72554755,175.36,175.22,10.72554755]
[1753902078087,16.42884755,175.36,175.22,10.72554755]
[1753902078287,10.72554755,175.36,175.22,10.72554755]
[1753902079083,10.72554755,175.36,175.19,0.99302316]
[1753902079284,5.7039,175.34,175.2,10.72554755]
[1753902079488,10.72554755,175.33,175.2,10.72554755]
[1753902080291,10.72554755,175.33,175.19,11.71857071]
[1753902080492,16.42954755,175.33,175.26,5.706]
[1753902080691,16.42954755,175.33,175.19,11.71857071]
[1753902081092,119.44,175.38,175.19,0.99302316]
[1753902081390,10.72554755,175.35,175.2,10.72554755]
[1753902081594,10.72554755,175.35,175.29,5.7051]
[1753902081983,10.72554755,175.35,175.2,10.72554755]
[1753902082193,10.72554755,175.35,175.19,0.99302316]
[1753902082693,10.72554755,175.35,175.2,10.72554755]
[1753902083092,10.72554755,175.35,175.3,5.7047]
[1753902083293,10.72554755,175.35,175.2,10.72554755]
[1753902083891,10.72554755,175.35,175.19,0.99302316]
[1753902084193,10.72554755,175.37,175.23,10.72554755]
[1753902084386,10.72554755,175.37,175.2,11.4161]
[1753902084790,10.72554755,175.37,175.32,5.7042]
[1753902085093,5.7018,175.4,175.22,10.72554755]
[1753902085295,10.72554755,175.36,175.35,5.7033]
[1753902085489,10.72554755,175.39,175.25,10.72554755]
[1753902085888,10.72554755,175.36,175.19,0.99302316]
[1753902086196,394.00554755,175.42,175.19,0.99302316]
[1753902086383,383.28,175.42,175.24,10.72554755]
[1753902086589,10.72554755,175.4,175.24,10.72554755]
[1753902086895,383.28,175.42,175.24,10.72554755]
[1753902086896,10.72554755,175.37,175.24,10.72554755]
[1753902087096,10.72554755,175.37,175.23,11.4144]
[1753902087395,10.72554755,175.39,175.25,10.72554755]
[1753902087896,10.72554755,175.39,175.26,11.4124]
[1753902088192,383.42,175.53,175.21,17.123]
[1753902088394,10.72554755,175.45,175.43,5.7007]
[1753902088589,10.72554755,175.45,175.31,11.4089]
[1753902088892,10.72554755,175.42,175.31,11.4089]
[1753902089291,10.72554755,175.44,175.31,11.4089]
[1753902089493,10.72554755,175.46,175.32,10.72554755]
[1753902089692,10.72554755,175.46,175.24,17.05]
[1753902089995,10.72554755,175.45,175.42,5.7008]
[1753902090197,10.72554755,175.45,175.33,11.4077]
[1753902090396,10.72554755,175.46,175.33,11.4077]
[1753902090589,10.72554755,175.46,175.44,5.7004]
[1753902090795,10.72554755,175.46,175.33,11.4077]
[1753902091194,10.72554755,175.46,175.43,5.7006]
[1753902091398,10.72554755,175.46,175.33,11.4077]
[1753902092092,383.42,175.53,175.38,10.72554755]
[1753902092303,10.72554755,175.54,175.51,5.698]
[1753902092497,10.72554755,175.54,175.41,10.72554755]
[1753902092695,124.0,175.63,175.41,10.72554755]
[1753902092893,10.72554755,175.57,175.41,10.72554755]
[1753902093090,10.72554755,175.57,175.42,11.402]
[1753902093395,10.72554755,175.63,175.47,10.72554755]
[1753902093700,383.42,175.64,175.46,10.72554755]
[1753902093898,10.72554755,175.62,175.49,10.72554755]
[1753902094094,10.72554755,175.62,175.48,10.72554755]
[1753902094414,10.72554755,175.63,175.51,10.72554755]
[1753902094697,10.72554755,175.63,175.41,383.36]
[1753902094698,10.72554755,175.63,175.48,10.72554755]
[1753902094899,10.72554755,175.63,175.51,10.72554755]
[1753902095096,10.72554755,175.63,175.46,11.399]
[1753902095396,10.72554755,175.6,175.56,5.6964]
[1753902095601,10.72554755,175.6,175.46,10.72554755]
[1753902095994,10.72554755,175.57,175.41,383.36]
[1753902096201,10.72554755,175.54,175.41,383.36]
[1753902096406,10.72554755,175.54,175.48,5.6991]
[1753902096699,5.6985,175.5,175.37,10.72554755]
[1753902096901,10.72554755,175.48,175.33,10.72554755]
[1753902097703,5.6995,175.47,175.33,10.72554755]
[1753902097899,10.72554755,175.48,175.33,10.72554755]
[1753902098805,10.72554755,175.45,175.3,10.72554755]
[1753902099403,10.72554755,175.47,175.33,10.72554755]
[1753902099603,10.72554755,175.56,175.33,10.72554755]
[1753902099798,10.72554755,175.49,175.36,10.72554755]
[1753902099999,10.72554755,175.49,175.33,10.72554755]
[1753902100198,10.72554755,175.49,175.42,5.701]
[1753902100497,10.72554755,175.49,175.36,10.72554755]
[1753902100906,10.72554755,175.49,175.33,10.72554755]
[1753902101294,130.08554755,175.56,175.33,10.72554755]
[1753902101495,10.72554755,175.47,175.33,10.72554755]
[1753902101802,16.42784755,175.39,175.32,5.7041]
[1753902102002,10.72554755,175.42,175.29,10.72554755]
[1753902102206,124.6,175.52,175.23,124.64]
[1753902102395,5.7004,175.44,175.32,10.72554755]
[1753902102595,124.6,175.52,175.32,10.72554755]
[1753902102802,10.72554755,175.46,175.32,10.72554755]
[1753902103406,5.6998,175.46,175.4,5.7017]
[1753902103706,10.72554755,175.48,175.32,10.72554755]
[1753902103906,5.7007,175.43,175.37,5.7026]
[1753902104104,10.72554755,175.45,175.31,10.72554755]
[1753902104404,10.72554755,175.48,175.4,5.7015]
[1753902104602,10.72554755,175.48,175.34,10.72554755]
[1753902104905,10.72554755,175.48,175.32,10.72554755]
[1753902105300,17.12,175.62,175.38,10.72554755]
[1753902105301,10.72554755,175.52,175.38,10.72554755]
[1753902105901,10.72554755,175.55,175.41,10.72554755]
[1753902106399,10.72554755,175.58,175.44,10.72554755]
[1753902106605,10.72554755,175.61,175.44,10.72554755]
[1753902107102,10.72554755,175.57,175.44,10.72554755]
[1753902107297,10.72554755,175.54,175.39,10.72554755]
[1753902107504,10.72554755,175.54,175.35,135.7264]
[1753902107711,10.72554755,175.54,175.38,10.72554755]
[1753902107908,10.72554755,175.57,175.41,10.72554755]
[1753902108204,10.72554755,175.57,175.44,10.72554755]
[1753902108710,10.72554755,175.63,175.47,10.72554755]
[1753902109295,10.72554755,175.57,175.44,10.72554755]
[1753902109505,10.72554755,175.54,175.38,123.96]
[1753902109706,10.72554755,175.54,175.4,10.72554755]
[1753902110097,124.0,175.68,175.46,10.72554755]
[1753902110302,10.72554755,175.62,175.38,123.96]
[1753902110508,10.72554755,175.59,175.38,123.96]
[1753902110809,10.72554755,175.6,175.47,10.72554755]
[1753902111009,10.72554755,175.62,175.47,10.72554755]
[1753902111508,10.72554755,175.59,175.44,10.72554755]
[1753902111703,10.72554755,175.56,175.44,10.72554755]
[1753902111903,10.72554755,175.56,175.41,10.72554755]
[1753902112609,10.72554755,175.53,175.39,10.72554755]
[1753902113913,10.72554755,175.5,175.36,134.60554755]
[1753902114410,10.72554755,175.47,175.36,123.88]
[1753902114610,123.58,175.59,175.36,123.88]
[1753902114805,10.72554755,175.5,175.36,123.88]
[1753902115011,10.72554755,175.47,175.36,123.88]
[1753902115506,11.3859,175.67,175.39,10.72554755]
[1753902115707,10.72554755,175.56,175.42,10.72554755]
[1753902116012,5.6977,175.53,175.46,5.6997]
[1753902116205,10.72554755,175.53,175.46,5.6997]
[1753902116401,10.72554755,175.56,175.43,10.72554755]
[1753902116606,10.72554755,175.58,175.43,10.72554755]
[1753902117406,5.6967,175.56,175.43,10.72554755]
[1753902117611,10.72554755,175.58,175.43,10.72554755]
[1753902118013,5.6981,175.52,175.45,5.7]
[1753902118212,10.72554755,175.55,175.4,10.72554755]
[1753902118607,10.72554755,175.57,175.36,123.88]
[1753902118812,10.72554755,175.54,175.41,10.72554755]
[1753902119007,5.699,175.49,175.43,5.7009]
[1753902119216,10.72554755,175.51,175.38,10.72554755]
[1753902119608,10.72554755,175.54,175.38,10.72554755]
[1753902120311,10.72554755,175.51,175.37,10.72554755]
[1753902120505,10.72554755,175.48,175.34,124.1]
[1753902121213,17.12,175.56,175.34,124.1]
[1753902121413,10.72554755,175.49,175.34,124.1]
[1753902121616,10.72554755,175.46,175.34,124.1]
[1753902122318,394.4535,175.57,175.34,134.82554755]
[1753902122520,10.72554755,175.51,175.37,10.72554755]
[1753902122913,10.72554755,175.5,175.36,10.72554755]
[1753902123609,10.72554755,175.56,175.34,124.1]
[1753902123812,10.72554755,175.46,175.34,124.1]
[1753902124418,10.72554755,175.46,175.33,10.72554755]
[1753902124614,10.72554755,175.46,175.32,383.2]
[1753902125319,10.72554755,175.43,175.32,383.2]
[1753902125519,10.72554755,175.43,175.29,10.72554755]
[1753902125716,11.3968,175.52,175.29,10.72554755]
[1753902125919,10.72554755,175.46,175.32,10.72554755]
[1753902126120,10.72554755,175.43,175.29,10.72554755]
[1753902126321,5.7021,175.4,175.36,5.7033]
[1753902126615,5.7021,175.4,175.29,10.72554755]
[1753902126818,5.7021,175.41,175.36,5.7032]
[1753902127016,11.3968,175.52,175.29,10.72554755]
[1753902127220,10.72554755,175.44,175.32,10.72554755]
[1753902127620,10.72554755,175.44,175.28,123.56]
[1753902127820,10.72554755,175.44,175.3,10.72554755]
[1753902128019,10.72554755,175.44,175.28,133.96554755]
[1753902128220,11.3968,175.52,175.31,10.72554755]
[1753902128424,10.72554755,175.46,175.31,10.72554755]
[1753902128622,10.72554755,175.48,175.28,123.24]
[1753902128817,10.72554755,175.48,175.33,10.72554755]
[1753902129318,10.72554755,175.48,175.32,10.72554755]
[1753902129525,10.72554755,175.39,175.21,383.16]
[1753902129717,27.84554755,175.56,175.21,393.88554755]
[1753902130029,10.72554755,175.36,175.21,393.88554755]
[1753902130818,11.402,175.44,175.21,393.88554755]
[1753902131120,18.03210032,175.44,175.23,6.63010032]
[1753902131310,6.63010032,175.36,175.21,383.16]
[1753902131511,5.7051,175.32,175.23,6.63010032]
[1753902131819,6.63010032,175.36,175.23,6.63010032]
[1753902132626,12.33370032,175.36,175.31,5.7049]
[1753902132819,6.63010032,175.36,175.26,6.63010032]
[1753902133324,11.3981,175.5,175.26,6.63010032]
[1753902133521,6.63010032,175.4,175.27,6.63010032]
[1753902133819,6.63010032,175.37,175.27,6.63010032]
[1753902134022,6.63010032,175.38,175.27,6.63010032]
[1753902134224,6.63010032,175.38,175.24,6.63010032]
[1753902134619,5.7032,175.37,175.24,6.63010032]
[1753902134825,6.63010032,175.38,175.27,6.63010032]
[1753902136123,6.63010032,175.4,175.27,6.63010032]
[1753902136427,6.63010032,175.41,175.3,6.63010032]
[1753902136624,6.63010032,175.37,175.21,383.16]
[1753902136818,6.63010032,175.37,175.26,6.63010032]
[1753902137526,6.63010032,175.36,175.26,6.63010032]
[1753902138321,6.63010032,175.39,175.26,6.63010032]
[1753902138523,5.7013,175.43,175.38,5.7029]
[1753902138724,6.63010032,175.39,175.25,123.96]
[1753902139024,5.7029,175.38,175.33,5.7043]
[1753902139223,6.63010032,175.36,175.25,130.47010032]
[1753902141229,12.33370032,175.36,175.31,5.705]
[1753902141530,6.63010032,175.36,175.25,130.47010032]
[1753902141733,6.63010032,175.36,175.25,123.84]
[1753902142330,5.7041,175.35,175.3,5.7053]
[1753902142733,5.7041,175.35,175.25,123.84]
[1753902142734,6.63010032,175.35,175.25,123.84]
[1753902143223,6.63010032,175.44,175.25,123.84]
[1753902143428,6.63010032,175.35,175.25,123.84]
[1753902143624,6.63010032,175.44,175.25,130.47010032]
[1753902143829,5.7036,175.36,175.32,5.7047]
[1753902144034,6.63010032,175.37,175.32,5.7047]
[1753902144437,6.63010032,175.37,175.33,5.7045]
[1753902144640,6.63010032,175.37,175.25,130.47010032]
[1753902145132,6.63010032,175.37,175.28,6.63010032]
[1753902145332,6.63010032,175.37,175.26,11.4136]
[1753902145536,6.63010032,175.37,175.25,130.47010032]
[1753902145737,6.63010032,175.37,175.25,123.84]
[1753902146037,6.63010032,175.37,175.33,5.7043]
[1753902146231,6.63010032,175.37,175.25,130.47010032]
[1753902149636,6.63010032,175.37,175.25,123.84]
[1753902150043,5.7041,175.35,175.25,123.84]
[1753902150244,6.63010032,175.37,175.25,123.84]
[1753902150444,6.63010032,175.37,175.31,5.705]
[1753902150644,6.63010032,175.37,175.25,123.84]
[1753902151045,6.63010032,175.34,175.25,123.84]
[1753902151342,383.4,175.4,175.14,5.687]
[1753902151543,6.63010032,175.23,175.14,5.687]
[1753902151736,6.63010032,175.2,175.14,5.687]
[1753902151940,6.63010032,175.17,175.14,5.687]
[1753902152241,6.63010032,175.19,175.14,5.687]
[1753902152442,12.34020032,175.16,175.09,5.687]
[1753902152646,6.63010032,175.15,175.09,5.687]
[1753902152947,6.63010032,175.15,175.08,8.20420908]
[1753902153447,6.63010032,175.12,175.08,8.20420908]
[1753902153639,6.63010032,175.12,175.04,0.99378882]
[1753902153640,6.63010032,175.09,175.05,5.7134]
[1753902153840,6.63010032,175.06,175.04,0.99378882]
[1753902154040,6.63010032,175.06,175.0,7.52]
[1753902154241,13.26020064,175.01,174.77,4.24800292]
[1753902154446,299.0,175.05,174.77,4.24800292]
[1753902154744,6.63010032,174.78,174.77,4.24800292]
[1753902154941,10.06736784,174.83,174.77,4.24800292]
[1753902155141,10.06736784,174.86,174.8,5.7217]
[1753902155347,10.06736784,174.89,174.77,4.24800292]
[1753902155746,10.06736784,174.94,174.8,10.06736784]
[1753902155944,10.06736784,174.97,174.8,10.06736784]
[1753902156147,10.06736784,175.01,174.78,126.54]
[1753902156347,10.06736784,175.04,174.89,10.06736784]
[1753902156739,17.12,175.22,174.81,128.1]
[1753902156941,10.06736784,175.1,174.96,10.06736784]
[1753902157143,10.06736784,175.13,174.96,10.06736784]
[1753902157343,383.66,175.23,175.02,10.06736784]
[1753902157540,10.06736784,175.24,175.08,10.06736784]
[1753902157944,10.06736784,175.29,175.11,10.06736784]
[1753902158241,10.06736784,175.32,175.18,5.7094]
[1753902158443,383.66,175.34,175.19,10.06736784]
[1753902158647,130.34,175.4,175.22,10.06736784]
[1753902158947,10.06736784,175.38,175.25,10.06736784]
[1753902159147,10.06736784,175.41,175.25,10.06736784]
[1753902159748,10.06736784,175.41,175.19,130.58]
[1753902160049,10.06736784,175.35,175.17,10.06736784]
[1753902160353,10.06736784,175.32,175.17,10.06736784]
[1753902160644,10.06736784,175.29,175.15,383.76]
[1753902160844,5.7062,175.28,175.15,383.76]
[1753902161039,10.06736784,175.26,175.15,383.76]
[1753902161245,10.06736784,175.26,175.12,10.06736784]
[1753902161647,10.06736784,175.29,175.15,10.06736784]
[1753902161846,130.68,175.38,175.15,10.06736784]
[1753902162146,10.06736784,175.36,175.21,10.06736784]
[1753902162450,10.06736784,175.36,175.11,27.18736784]
[1753902162451,130.6,175.48,175.23,10.06736784]
[1753902162749,10.06736784,175.44,175.29,10.06736784]
[1753902163542,10.06736784,175.44,175.19,17.12]
[1753902163747,10.06736784,175.44,175.25,130.52]
[1753902164045,10.06736784,175.38,175.25,10.06736784]
[1753902164740,10.06736784,175.37,175.25,10.06736784]
[1753902164950,10.06736784,175.37,175.22,10.06736784]
[1753902165246,10.06736784,175.34,175.22,10.06736784]
[1753902165850,10.06736784,175.34,175.19,10.06736784]
[1753902166041,10.06736784,175.37,175.22,10.06736784]
[1753902166349,10.06736784,175.4,175.25,10.06736784]
[1753902166751,10.06736784,175.43,175.3,5.7054]
[1753902166954,10.06736784,175.43,175.28,10.06736784]
[1753902167149,254.6,175.48,175.31,10.06736784]
[1753902167446,254.6,175.48,175.24,10.06736784]
[1753902167447,17.12,175.56,175.1,1644.46]
[1753902167655,11.06012188,175.45,175.31,10.06736784]
[1753902167850,10.06736784,175.45,175.31,10.06736784]
[1753902168049,10.06736784,175.45,175.28,10.06736784]
[1753902168356,10.06736784,175.45,175.27,383.56]
[1753902168552,10.06736784,175.39,175.27,393.62736784]
[1753902168750,10.06736784,175.33,175.19,140.98736784]
[1753902168952,10.06736784,175.39,175.25,10.06736784]
[1753902169547,10.06736784,175.44,175.31,10.06736784]
[1753902169752,0.99271156,175.54,175.31,10.06736784]
[1753902169953,5.6996,175.49,175.38,5.7029]
[1753902170255,10.06736784,175.48,175.3,130.9]
[1753902170454,10.06736784,175.49,175.33,10.06736784]
[1753902170755,10.06736784,175.46,175.31,10.06736784]
[1753902170956,10.06736784,175.46,175.3,130.9]
[1753902171152,10.06736784,175.46,175.31,10.06736784]
[1753902171348,10.06736784,175.34,175.19,10.06736784]
[1753902171551,5.7065,175.27,175.06,131.42]
[1753902171752,5.7065,175.27,175.15,10.06736784]
[1753902171951,5.7065,175.27,175.06,131.42]
[1753902171952,10.06736784,175.28,175.12,10.06736784]
[1753902172152,5.7085,175.21,175.12,10.06736784]
[1753902172353,10.06736784,175.22,175.09,10.06736784]
[1753902172750,10.06736784,175.22,175.09,15.77966784]
[1753902172951,10.06736784,175.25,175.01,383.52]
[1753902173150,10.06736784,175.26,175.11,10.06736784]
[1753902173355,10.06736784,175.23,175.08,10.06736784]
[1753902173956,5.7085,175.21,175.08,10.06736784]
[1753902174159,10.06736784,175.25,175.08,10.06736784]
[1753902174359,10.06736784,175.22,175.08,10.06736784]
[1753902174752,5.7101,175.17,175.08,15.77976784]
[1753902174961,10.06736784,175.22,175.08,10.06736784]
[1753902175353,10.06736784,175.25,175.11,10.06736784]
[1753902175756,5.7101,175.16,175.08,10.06736784]
[1753902176362,10.06736784,175.21,175.01,383.52]
[1753902176661,10.06736784,175.21,175.06,10.06736784]
[1753902177356,5.7119,175.11,175.06,10.06736784]
[1753902177560,10.06736784,175.15,174.98,10.06736784]
[1753902177956,5.7133,175.07,175.01,10.06736784]
[1753902178263,10.06736784,175.18,175.04,10.06736784]
[1753902178455,10.06736784,175.18,175.01,10.06736784]
[1753902178853,10.06736784,175.18,175.04,10.06736784]
[1753902179160,10.06736784,175.2,175.07,10.06736784]
[1753902179359,383.62,175.25,175.04,10.06736784]
[1753902179565,10.06736784,175.21,175.07,10.06736784]
[1753902179765,10.06736784,175.18,175.04,10.06736784]
[1753902179955,5.7102,175.16,174.92,215.70170416]
[1753902180162,10.06736784,175.19,175.04,10.06736784]
[1753902180361,10.06736784,175.16,175.01,10.06736784]
[1753902180560,158.04736784,175.24,174.92,215.70170416]
[1753902180766,10.06736784,175.07,174.92,140.78736784]
[1753902181366,10.06736784,175.04,174.92,140.78736784]
[1753902181566,5.7156,175.0,174.94,5.7172]
[1753902181866,10.06736784,175.04,174.92,130.72]
[1753902182066,10.06736784,175.04,174.92,5.7179]
[1753902182266,10.06736784,175.01,174.87,10.06736784]
[1753902182467,10.06736784,175.05,174.89,10.06736784]
[1753902182667,10.06736784,175.12,174.98,10.06736784]
[1753902182967,130.8,175.22,174.98,10.06736784]
[1753902183160,10.06736784,175.14,174.98,10.06736784]
[1753902183868,10.06736784,175.08,174.96,10.06736784]
[1753902184068,10.06736784,175.02,174.88,393.68736784]
[1753902184272,5.7165,174.97,174.88,393.66736784]
[1753902184479,10.06736784,175.02,174.88,10.06736784]
[1753902184663,10.06736784,175.11,174.84,130.78]
[1753902184664,10.06736784,174.99,174.85,10.06736784]
[1753902185175,383.92,175.08,174.85,10.06736784]
[1753902185468,10.06736784,174.97,174.85,10.06736784]
[1753902185768,5.7173,174.94,174.89,5.7187]
[1753902185970,130.66,175.05,174.81,10.06736784]
[1753902186166,10.06736784,175.0,174.84,10.06736784]
[1753902186373,10.06736784,175.03,174.87,10.06736784]
[1753902186570,10.06736784,175.03,174.9,10.06736784]
[1753902186770,10.06736784,175.03,174.97,5.7162]
[1753902186976,10.06736784,175.07,174.93,10.06736784]
[1753902187162,393.98736784,175.08,174.93,10.06736784]
[1753902187367,10.06736784,175.05,174.89,10.06736784]
[1753902187569,10.06736784,175.06,174.92,10.06736784]